Cogmind - Beta 9.3 @@@ ROGUE MODE // 2019.12.18 @ 13:26:10 // Winter2019/RPGLIKE Player: Judas Result: Destroyed by Y-45 Defender with Heavy Assault Rifle Performance ------------- Evolutions (2) 1000 Regions Visited (4) 800 Robots Destroyed (48) 240 Value Destroyed (1142) 1142 Prototype IDs (0) 0 Alien Tech Used (0) 0 Bonus (67) 67 TOTAL SCORE: 3249 Bonus ------- High Alert Combat Kills 60 Follower Combat Kills 7 Cogmind --------- Core Integrity 0/850 Matter 287/300 Energy 63/265 System Corruption 0% Temperature Cool (9) Movement Hovering (56) Location -8/Materials Parts ------- > --- POWER (1) -------- Improved Ion Engine > --- PROPULSION (2) --- Improved Hover Unit Improved Hover Unit > --- UTILITY (3) ------ Visual Processing Unit Improved Signal Interpreter Terrain Scanner > --- WEAPON (3) ------- Heavy EM Pulse Gun Light Assault Rifle Light Cannon > --- INVENTORY (2) ---- Mini Grenade Launcher Katana Peak State ------------ > --- POWER ------------ Light Nuclear Core > --- PROPULSION ------- Improved Hover Unit Improved Hover Unit > --- UTILITY ---------- Visual Processing Unit Improved Signal Interpreter Terrain Scanner > --- WEAPON ----------- Heavy EM Pulse Gun Light Assault Rifle Light Cannon > --- INVENTORY -------- Mini Grenade Launcher [Rating: 16] Favorites ----------- Power Light Nuclear Core Engine Improved Ion Engine Power Core Light Nuclear Core Propulsion Hover Unit Wheel Wheel Hover Unit Hover Unit Utility Terrain Scanner Device Terrain Scanner Processor Visual Processing Unit Weapon Light Cannon Energy Gun Heavy EM Pulse Gun Ballistic Gun Assault Rifle Ballistic Cannon Light Cannon Build | -11 -10 -9 -9 -8 ------- Run | Scr Mat Mat Min Mat Slots Evolved 5 | 3 . 1 1 . Power . | . . . . . Propulsion 1 | 1 . . . . Utility 2 | 1 . . 1 . Weapon 2 | 1 . 1 . . Parts Attached 22 | 5 9 4 2 2 Power 5 | 1 2 1 . 1 Engine 3 | 1 1 . . 1 Core 2 | . 1 1 . . Reactor . | . . . . . Propulsion 7 | 2 3 2 . . Treads . | . . . . . Leg . | . . . . . Wheel 3 | 2 1 . . . Hover 4 | . 2 2 . . Flight . | . . . . . Utility 4 | . 3 . 1 . Device 1 | . 1 . . . Storage . | . . . . . Processor 3 | . 2 . 1 . Hackware . | . . . . . Protection . | . . . . . Artifact . | . . . . . Weapon 6 | 2 1 1 1 1 Energy Gun 1 | . . 1 . . Energy Cannon . | . . . . . Ballistic Gun 4 | 2 . . 1 1 Ballistic Cannon 1 | . 1 . . . Launcher . | . . . . . Special Weapon . | . . . . . Impact Weapon . | . . . . . Slashing Weapon . | . . . . . Piercing Weapon . | . . . . . Special Melee Weapon . | . . . . . Unidentified Prototypes . | . . . . . Parts Lost 1 | . . . . 1 Power 1 | . . . . 1 Propulsion . | . . . . . Utility . | . . . . . Weapon . | . . . . . Highest Loss Streak 1 | . . . . 1 Average Slot Usage (%) 96 | . 93 98 100 96 Engine 2 | . 4 . . 1 Core 10 | . 9 13 11 7 Wheel 4 | . 8 . . . Hover 21 | . 19 27 23 22 Device 10 | . 8 13 11 11 Processor 15 | . 13 13 17 22 Energy Gun 4 | . . . 11 11 Ballistic Gun 15 | . 18 13 11 11 Ballistic Cannon 10 | . 9 13 11 11 Naked Turns . | . . . . . Heaviest Build 15 | 8 11 14 14 15 Greatest Support 26 | 26 26 16 16 21 Greatest Overweight (x) 1 | . 1 . . . Average Overweight (x) . | . . . . . Largest Inventory Capacity 2 | . 1 2 2 2 Average Capacity 1 | . . 1 2 2 Most Carried 2 | . 1 2 2 2 Average Carried 1 | . . 1 1 1 Final Capacity 2 | . 1 2 2 2 Final Carried 2 | . 1 2 2 2 Class Distribution -------------------- 54% | Mutant 27% | Scavenger-Scout 17% | Scout Dominant Class ---------------- Mutant | -10/Materials Scout | -9/Materials Scavenger-Scout | -9/Mines Scavenger-Scout | -8/Materials Resources | -11 -10 -9 -9 -8 ----------- Run | Scr Mat Mat Min Mat Matter Collected 1135 | 250 379 191 218 97 Remotely . | . . . . . Salvage Created 1588 | . 456 334 443 355 Parts 105 | . 35 20 32 18 Haulers Intercepted 5 | . 2 2 . 1 Recyclers Shooed 8 | . 7 1 . . Parts Field Recycled . | . . . . . Retrieved Matter . | . . . . . Parts Self-Destructed . | . . . . . Prevented . | . . . . . Kills | -11 -10 -9 -9 -8 ------- Run | Scr Mat Mat Min Mat Combat Hostiles Destroyed 32 | . 7 4 13 8 Guns 18 | . 4 . 8 6 Cannons 14 | . 3 4 5 2 Classes Destroyed 12 | . 7 3 . 2 Worker 2 | . . 1 1 . Builder 2 | . 2 . . . Tunneler 3 | . 3 . . . Hauler 5 | . 2 2 . 1 Recycler 1 | . . 1 . . Mechanic 1 | . 1 . . . Watcher 2 | . 2 . . . Swarmer 11 | . 3 . 6 2 Grunt 16 | . 4 3 5 4 Duelist 1 | . . . . 1 Sentry 3 | . . 1 2 . Hunter 1 | . . . . 1 Best Kill Streak 9 | . 4 4 4 9 Combat Bots Only 8 | . 4 3 3 8 Max Kills in Single Turn 1 | . 1 1 1 1 Gunslinging . | . . . . . Exploded . | . . . . . Melee . | . . . . . Uniques/NPCs Destroyed . | . . . . . Combat | -11 -10 -9 -9 -8 -------- Run | Scr Mat Mat Min Mat Damage Taken 1793 | . 353 148 584 708 Core 1473 | . 290 123 482 578 Absorbed by Shields . | . . . . . Redirected to Core 1089 | . 213 88 342 446 Core Remaining (%) 84 | 100 95 . 58 . Volleys Fired 131 | . 55 24 33 19 Largest 3 | . 2 3 3 3 Hottest 100 | . 55 100 100 100 Shots Fired 315 | . 110 49 99 57 Gun 216 | . 87 25 66 38 Cannon 99 | . 23 24 33 19 Launcher . | . . . . . Special . | . . . . . Kinetic 262 | . 110 48 66 38 Thermal . | . . . . . Explosive . | . . . . . Electromagnetic 53 | . . 1 33 19 Robot Hit Streak 21 | . 10 6 15 21 Robot Miss Streak 5 | . 4 3 5 2 Penetration Max . | . . . . . Secondary Targets . | . . . . . Shots Hit Robots 181 | . 62 30 48 41 Core Hits 79 | . 29 12 21 17 Critical Hits 3 | . 2 1 . . Critical Kills 1 | . . 1 . . Critical Parts Destroyed 2 | . 2 . . . Melee Attacks . | . . . . . Impact . | . . . . . Slashing . | . . . . . Piercing . | . . . . . Sneak Attacks . | . . . . . Combat Hostiles . | . . . . . Follow-up Attacks . | . . . . . Damage Inflicted 2661 | . 844 536 744 537 Guns 1650 | . 593 263 453 341 Cannons 1010 | . 251 273 290 196 Explosions . | . . . . . Melee . | . . . . . Ramming 1 | . . . 1 . Kinetic 2058 | . 844 508 423 283 Thermal . | . . . . . Explosive . | . . . . . Electromagnetic 602 | . . 28 320 254 Impact . | . . . . . Slashing . | . . . . . Piercing . | . . . . . Highest Corruption . | . . . . . Average Corruption . | . . . . . Corruption Purged . | . . . . . Overload Shots . | . . . . . Overflow Damage 12 | . 4 6 2 . Projectiles 12 | . 4 6 2 . Explosions . | . . . . . Melee . | . . . . . Knockbacks 15 | . 6 . 2 7 Impact . | . . . . . Kinetic 12 | . 5 . 2 5 Secondary 3 | . 1 . . 2 Self-Inflicted Damage . | . . . . . Shots . | . . . . . Rammed 1 | . . . 1 . Targets Rammed 1 | . . . 1 . Kicked . | . . . . . Crushed . | . . . . . Highest Temperature 292 | . 69 33 292 21 Average Temperature 56 | . 9 8 107 7 Received Heat Transfer 705 | . 180 63 138 324 Siege Activations . | . . . . . Robots Corrupted . | . . . . . Combat Hostiles . | . . . . . Parts Fried 1 | . . . . 1 Impact Corruptions . | . . . . . Robots Melted . | . . . . . Combat Hostiles . | . . . . . Parts Melted . | . . . . . Heat Transferred . | . . . . . Parts Sabotaged . | . . . . . Parts Stolen . | . . . . . Parts Stripped . | . . . . . Power Chain Reactions . | . . . . . Missiles Intercepted . | . . . . . Alert | -11 -10 -9 -9 -8 ------- Run | Scr Mat Mat Min Mat Peak Influence 556 | . 207 271 556 409 Average Influence 176 | . 53 188 387 308 Maximum Alert Level 2 | . 1 1 2 2 Low Security (%) 61 | 100 98 48 12 . Level 1 21 | . 1 51 27 84 Level 2 17 | . . . 60 15 Level 3 . | . . . . . Level 4 . | . . . . . Level 5 . | . . . . . High Security . | . . . . . Max Security . | . . . . . Squads Dispatched 3 | . 1 1 . 1 Investigation 1 | . . . . 1 Extermination . | . . . . . Reinforcement 2 | . 1 1 . . Assault . | . . . . . Garrison . | . . . . . Intercept . | . . . . . Construction Impeded . | . . . . . Haulers Reinforced . | . . . . . Stealth | -11 -10 -9 -9 -8 --------- Run | Scr Mat Mat Min Mat Distress Signals 2 | . . 2 . . Communications Jammed . | . . . . . Distress Signals . | . . . . . Times Spotted 55 | . 18 10 15 12 Peak Tracking Total 7 | . 3 7 4 5 Tactical Retreats 2 | . 2 . . . Traps | -11 -10 -9 -9 -8 ------- Run | Scr Mat Mat Min Mat Traps Triggered . | . . . . . Indirectly . | . . . . . Trap Hack Attempts . | . . . . . Triggered . | . . . . . Disarmed . | . . . . . Reprogrammed . | . . . . . Reused . | . . . . . Traps Extracted . | . . . . . Installed . | . . . . . Triggered . | . . . . . Machines | -11 -10 -9 -9 -8 ---------- Run | Scr Mat Mat Min Mat Machines Disabled 5 | . 2 3 . . Max in Single Turn 1 | . 1 1 . . Machines Sabotaged . | . . . . . Garrisons Compromised . | . . . . . Overloaded Fab Kills . | . . . . . Fab Network Shutdowns . | . . . . . Hacking | -11 -10 -9 -9 -8 --------- Run | Scr Mat Mat Min Mat Machines Accessed 7 | . 6 . . 1 Terminals 7 | . 6 . . 1 Fabricators . | . . . . . Repair Stations . | . . . . . Recycling Units . | . . . . . Scanalyzers . | . . . . . Garrison Access . | . . . . . Total Hacks 21 | . 17 . . 4 Successful 11 | . 10 . . 1 Failed 10 | . 7 . . 3 Catastrophic 1 | . . . . 1 Database Lockouts . | . . . . . Manual 18 | . 14 . . 4 Terminals 21 | . 17 . . 4 Fabricators . | . . . . . Repair Stations . | . . . . . Recycling Units . | . . . . . Scanalyzers . | . . . . . Garrison Access . | . . . . . Terminal Hacks 4 | . 4 . . . Record 1 | . 1 . . . Alert Level 1 | . 1 . . . Unreport Threat 1 | . 1 . . . Hauler Manifests 1 | . 1 . . . Fabricator Hacks . | . . . . . Repair Station Hacks . | . . . . . Recycling Unit Hacks . | . . . . . Scanalyzer . | . . . . . Garrison Access Hacks . | . . . . . Unauthorized Hacks 24 | . 19 . . 5 Terminals 7 | . 6 . . 1 Track 1 | . 1 . . . Botnet 4 | . 3 . . 1 Detonate 2 | . 2 . . . Fabricators . | . . . . . Repair Stations . | . . . . . Recycling Units . | . . . . . Scanalyzers . | . . . . . Garrison Access . | . . . . . Data Cores Recovered . | . . . . . Used . | . . . . . Hacking Detections 5 | . 4 . . 1 Full Trace Events 1 | . . . . 1 Feedback Events . | . . . . . Feedback Blocked . | . . . . . Robot Schematics Acquired . | . . . . . Robots Built . | . . . . . Matter . | . . . . . Time . | . . . . . Total Robot Build Rating . | . . . . . Part Schematics Acquired . | . . . . . Parts Built . | . . . . . Matter . | . . . . . Time . | . . . . . Total Part Build Rating . | . . . . . Parts Repaired . | . . . . . Time . | . . . . . Parts Recycled . | . . . . . Recycled Matter . | . . . . . Retrieved Matter . | . . . . . Retrieved Components . | . . . . . Parts Scanalyzed . | . . . . . Part Schematics Acquired . | . . . . . Parts Damaged . | . . . . . Bothacking | -11 -10 -9 -9 -8 ------------ Run | Scr Mat Mat Min Mat Used RIF Installer . | . . . . . Robots Hacked . | . . . . . Non-combat . | . . . . . Combat . | . . . . . Robot Hacks Applied . | . . . . . Relay Couplers Released . | . . . . . Robots Rewired . | . . . . . Allies Hacked . | . . . . . Hacks Repelled . | . . . . . Allies | -11 -10 -9 -9 -8 -------- Run | Scr Mat Mat Min Mat Total Allies 1 | . . . 1 . Largest Group 1 | . . . 1 . Highest-Rated Group 31 | . . . 31 . Highest-Rated Ally 31 | . . . 31 . Total Orders . | . . . . . Ally Attacks 20 | . . . 20 . Total Damage 260 | . . . 260 . Kills 5 | . . . 5 . Allies Corrupted . | . . . . . Allies Melted . | . . . . . Intel | -11 -10 -9 -9 -8 ------- Run | Scr Mat Mat Min Mat Robot Analysis Total . | . . . . . Derelict Logs Recovered 1 | . . . 1 . Drone Launches . | . . . . . Drone Recoveries . | . . . . . Exploration | -11 -10 -9 -9 -8 ------------- Run | Scr Mat Mat Min Mat Turns Passed 1447 | 40 734 180 381 112 Spaces Moved 1309 | 38 633 162 410 66 Core 1 | 1 . . . . Treads . | . . . . . Legs . | . . . . . Wheels 166 | 37 129 . . . Hover 1142 | . 504 162 410 66 Flight . | . . . . . Fastest Speed 50 | 50 56 56 56 56 Average Speed 60 | 87 63 56 56 56 Slowest Speed 125 | 90 125 56 56 56 Overloaded Moves . | . . . . . Propulsion Burnouts . | . . . . . Robots Hopped . | . . . . . Cave-ins Triggered . | . . . . . Exploration Rate (%) 39 | 3 77 24 86 8 Regions Visited 4 Branch Regions 1 Pre-discovered Areas . | . . . . . Known Exits Taken 1 | . . . 1 . Unknown Exits Taken 3 | 1 1 1 . . Scrap Searched 1 | . . . 1 . Spaces Dug . | . . . . . Terrain Destroyed 1 | . . . . 1 Melee . | . . . . . Projectile 1 | . . . . 1 AOE . | . . . . . Actions | -11 -10 -9 -9 -8 --------- Run | Scr Mat Mat Min Mat Total 1704 | 42 863 204 491 104 Wait 191 | . 142 3 34 12 Move 1305 | 37 632 161 409 66 Hop . | . . . . . Pick Up 6 | . 2 2 1 1 Fast Attach 16 | 5 8 1 1 1 Attach 1 | . . . 1 . Detach . | . . . . . Swap 5 | . 1 3 . 1 Drop 15 | . 8 4 1 2 Fire 131 | . 55 24 33 19 Melee . | . . . . . Ram 1 | . . . 1 . Kick . | . . . . . Crush . | . . . . . Escape Stasis . | . . . . . Rewire . | . . . . . Trap . | . . . . . Miscellaneous 33 | . 15 6 10 2 Route ------- -11/Scrapyard -10/Materials (discovered 4 exits: [*Mat x3] / [*Min]) -9/Materials -9/Mines (discovered 2 exits: *Mat x2) -8/Materials History --------- Turn | Location | Event 1 | -11/Scrapyard | Upgraded with Propulsion slot (x1) 1 | -11/Scrapyard | Upgraded with Utility slot (x1) 1 | -11/Scrapyard | Upgraded with Weapon slot (x1) 23 | -11/Scrapyard | Discovered new exit (range 16) 41 | -11/Scrapyard | Entered Materials 298 | -10/Materials | Discovered new exit (range 14) 324 | -10/Materials | Build established: Mutant 364 | -10/Materials | Discovered new exit (range 15) 702 | -10/Materials | Discovered new exit (range 5) 742 | -10/Materials | Discovered new exit (range 17) 775 | -10/Materials | Entered another Materials area 777 | -9/Materials | Reached level 2 833 | -9/Materials | Reached level 3 927 | -9/Materials | Upgraded with Weapon slot (x1) 931 | -9/Materials | Discovered new exit (range 12) 955 | -9/Materials | Entered Mines 964 | -9/Mines | Received a Mining Laser from a helpful Derelict 975 | -9/Mines | Discovered new exit (range 8) 1052 | -9/Mines | Reached level 4 1111 | -9/Mines | Upgraded with Utility slot (x1) 1211 | -9/Mines | Learned Materials emergency access door positions 1281 | -9/Mines | Discovered new exit (range 18) 1290 | -9/Mines | Identified exit to Materials 1321 | -9/Mines | Reached level 5 1322 | -9/Mines | Build established: Scavenger-Scout 1336 | -9/Mines | Entered Materials 1336 | -8/Materials | Accompanied by 1 ally 1338 | -8/Materials | Reached level 6 1381 | -8/Materials | Core integrity fell below 50% 1395 | -8/Materials | Core integrity fell below 20% 1436 | -8/Materials | Destroyed 8 combat bots 1448 | -8/Materials | Destroyed by Y-45 Defender with Heavy Assault Rifle Last Messages --------------- 01394_ G-47 Trooper knocked back. 01401_ G-47 Trooper IFF system glitched. 01403_ G-47 Trooper destroyed. 01406_ Lgt. Nuclear Core destroyed. 01406_ G-47 Trooper destroyed. 01408_ Protomatter-57 decays. 01411_ Used Protomatter to restore core integrity (+39, depleted) 01412_ H-55 Commando knocked back. 01415_ H-55 Commando destroyed. 01416_ Acquired 75 matter. 01417_ Protomatter-42 decays. 01425_ R-06 Scavenger collects Flight Unit. 01426_ Dropped Flail. 01427_ A-02 Transporter destroyed. 01430_ Acquired Katana. 01432_ Dropped Lgt. Assault Rifle. 01435_ Acquired Imp. Ion Engine. 01438_ Acquired 22 matter. 01440_ K-01 Serf collects debris. [Achievement: Back For More] Map ----- +----------------------------------------------------+ | ?????????????????????????????????????????????????? | | ?????????????????????????????????????????????????? | | ?????????????????????????????????????????????????? | | ?????????????????????????????????????????????????? | | ?????????????????????????????????????????????????? | | ?????????????????????????????????????????????????? | | ?????????????????????????????????????????????????? | | ???#?????????????????????????????????????????????? | | ???????#####???????????????#+##??????????????????? | | ???????# #??????????????? ??????????????????? | | ???????# #??????????????? ??????????????????? | | ???????# #??????????????? ??????????????????? | | ???????# ##????????#???#? #??????????????????? | | ???????# #????? ??#?#### #??????????????????? | | ???????# #??????? ?##### #?? ???????????????? | | ??????## ##?? ? ###### ##??"??????????????? | | ###+### ]###+########## # "?"?????????????? | | #?"?"?????????????? | | w + ?????????????? | | # """ ????????????? | | ####### ##############%*! # """?????????????? | | #????####+##############?##|! ## ""? ???????????? | | ???#?# #??##########%=!## ?? ?????????? | | ?#???#""""" #############^^^##?#+###?#?????????? | | ?????#""""" # #######*^^#?#? ?###??????????? | | ???#?#""""" # [%%@Y !*#### ???##?#???????? | | ?????#""""" + T [ ==[!#### ###???????????? | | ???###""""" # =%[%*=%#### ?###??????????? | | ?????#""""" # #######k/=###? ####??????????? | | ??#?##""""" #############[%[###? ##?#??????????? | | ???### #######?##?##[ #### ###???????????? | | #?#??############?###???### #### # ???????????? | | ????????##?#??######? #### #? ???????????? | | ????????????###?#### + ????????????? | | ??#????????######?## ? #### # ????????????? | | ?????#?###???#?##### ? #########?#u#?????????????? | | ????????#?###?###?#? #####?##?##???????????????? | | ????#???????##???### #####?#?###???????????????? | | ????????#???????#### ##########????????????????? | | ???????????#??????## ?# ? ??????????????????? | | ???????????????#???#? ?# ????????????????????? | | ?????????????????????????????????????????????????? | | ?????????????????????????????????????????????????? | | ?????????????????????????????????????????????????? | | ?????????????????????????????????????????????????? | | ?????????????????????????????????????????????????? | | ?????????????????????????????????????????????????? | | ???????????????????????????????????+?????????????? | | ????????????????????????????????????????????+????? | | ?????????????????????????????????????????????????? | +----------------------------------------------------+ Best States ------------- Heat Dissipation 55 Energy Generation 14 Energy Capacity 265 Matter Stores 300 Matter Capacity 300 Sight Range 20 Robot Scan Range 16 Terrain Scan Range 14 Terrain Scan Density 210 Evasion (%) 53 Item Schematics ----------------- None Robot Schematics ------------------ None Fabricated ------------ Nothing Alien Tech Used ----------------- None Achievements -------------- Back For More Challenges ------------ None RPGLIKE | -11 -10 -9 -9 -8 --------- Run | Scr Mat Mat Min Mat Levels Raised 5 | . . 2 2 1 XP Earned 11526 | 3000 1215 2220 2656 2435 XP Spent 10345 | 2600 250 2930 1300 3265 Upgrades 37 | 6 1 13 2 15 Propulsion Slot 1 | 1 . . . . Utility Slot 2 | 1 . . 1 . Weapon Slot 2 | 1 . 1 . . Core Integrity 5 | . . 3 . 2 Heat Dissipation 5 | . . 1 . 4 Mass Support 1 | . . . . 1 Inventory Capacity 2 | . 1 1 . . Sight Range 2 | . . . . 2 Sensor Range 8 | . . 6 . 2 Terrain Scan Density 2 | . . . . 2 Ranged Accuracy 3 | 1 . . 1 1 KI Damage % 4 | 2 . 1 . 1 Protomatter Created 342 | . 92 36 102 112 Integrity Restored 632 | . 272 108 213 39 Core 622 | . 262 108 213 39 Parts 10 | . 10 . . . Protomatter Decayed 140 | . . . 41 99 Game ------ Seed HackingAngularSink Manual? 0 Play Time 00:32:52 Cumulative 27.7 hours Start 2019.12.18 @ 12:33:43 End 2019.12.18 @ 13:26:10 Sessions 3 Manual Loads 0 Difficulty Rogue Special Mode Winter2019/RPGLIKE Game No. 52 Rogue 52 Adventurer 0 Explorer 0 Win Type - Total 0 Types 0/0/0/0/0/0/0 Lore% 21 Gallery% 27 Achievement% 23 Wizard Run 0 Options --------- ASCII 0 Keyboard 0 Movement Mouse Keybinds 0 Fullscreen 1 Font 18/SmallcapsGlow Map View 76x50 Tactical HUD 1 Map Filters NONE Filters NONE Steam 1 RUN: 0acf31f5-7a35-40eb-99fe-a3f5a6d80ab5